Cogmind - Beta 15 @@@ ROGUE MODE // 2025.08.16 @ 01:21:22 Player: Naughtyusername Result: Destroyed by Y-64 Sentinel with Wave Gun Performance ------------- Evolutions (4) 2000 Regions Visited (10) 2000 Robots Destroyed (194) 970 Value Destroyed (6343) 6343 Prototype IDs (16) 320 Alien Tech Used (0) 0 Bonus (2942) 2942 TOTAL SCORE: 14575 Bonus ------- Triggered High Security 500 High Alert Combat Kills 1625 Follower Combat Kills 1434 Registered with UFD 300 Met Optimus in HQ 500 Friendly Fire -1417 Cogmind --------- Core Integrity 0/850 Matter 95/300 Energy 99/100 System Corruption 0% Temperature Cool (9) Movement Core (50) Location -6/Archives Parts ------- > --- POWER (1) -------- (None) > --- PROPULSION (3) --- (None) > --- UTILITY (5) ------ (None) > --- WEAPON (6) ------- (None) > --- INVENTORY (5) ---- Wheel Compact Matter Pod (150) Improved Terrain Scanner Seismic Detector Improved Light Armor Plating Peak State ------------ > --- POWER ------------ Neutrino Core > --- PROPULSION ------- Armored Wheel Armored Huge Wheel > --- UTILITY ---------- Advanced Heat Sink Huge Storage Unit Advanced Targeting Computer Matter Filter Improved Light Armor Plating > --- WEAPON ----------- Flak Gun Flak Gun Flak Gun Flak Gun Flak Gun Heavy Machine Gun > --- INVENTORY -------- Cooled Ion Engine Improved Deuterium Engine Light Antimatter Reactor Armored Wheel Armored Wheel Advanced Heat Sink High-capacity Matter Pod Compact Matter Pod Advanced Signal Interpreter Improved Terrain Scanner Seismic Detector Armor Integrity Analyzer Hardened Light Armor Plating Improved Light Armor Plating Improved Light Armor Plating A0-MCA's Component Scanner High-powered Tractor Beam Proton Cannon Phase Cannon Autogun Battle Rifle Heavy Machine Gun Rocket Launcher Mini Grenade Launcher [Rating: 65] Favorites ----------- Power Cooled Ion Engine Engine Cooled Ion Engine Power Core Light Nuclear Core Reactor Light Antimatter Reactor Propulsion Armored Wheel Treads Light Treads Leg Aluminum Leg Wheel Armored Wheel Utility Huge Storage Unit Device Structural Scanner Storage Huge Storage Unit Processor Advanced Targeting Computer Protection Light Armor Plating Weapon Heavy Assault Rifle Energy Gun Small Laser Energy Cannon Phase Cannon Ballistic Gun Heavy Assault Rifle Ballistic Cannon Bore Cannon Launcher Mini Grenade Launcher Slashing Weapon Phasing Sabre Build | -11 -10 -10 -9 -9 -9 -9 -6 -6 -6 -6 ------- Run | Yrd Mat Min Mat Sto Rec Scr Fac Ext Cet Arc Slots Evolved 8 | . . . 2 . . . 6 . . . Power . | . . . . . . . . . . . Propulsion 1 | . . . . . . . 1 . . . Utility 3 | . . . . . . . 3 . . . Weapon 4 | . . . 2 . . . 2 . . . Parts Attached 110 | 6 9 3 18 10 1 2 31 28 2 . Power 7 | . 1 1 2 . . . 1 2 . . Engine 4 | . 1 . 2 . . . 1 . . . Core 2 | . . 1 . . . . . 1 . . Reactor 1 | . . . . . . . . 1 . . Propulsion 26 | 2 3 1 7 3 . 1 4 5 . . Treads 9 | 1 1 . 4 2 . . 1 . . . Leg . | . . . . . . . . . . . Wheel 17 | 1 2 1 3 1 . 1 3 5 . . Hover . | . . . . . . . . . . . Flight . | . . . . . . . . . . . Utility 33 | 2 3 1 2 3 1 . 13 6 2 . Device 13 | 2 1 . . 1 1 . 6 2 . . Storage 3 | . 2 . 1 . . . . . . . Processor 3 | . . . . . . . 1 1 1 . Hackware . | . . . . . . . . . . . Protection 14 | . . 1 1 2 . . 6 3 1 . Artifact . | . . . . . . . . . . . Weapon 44 | 2 2 . 7 4 . 1 13 15 . . Energy Gun 2 | 2 . . . . . . . . . . Energy Cannon 2 | . . . . . . . 1 1 . . Ballistic Gun 35 | . 2 . 7 4 . 1 12 9 . . Ballistic Cannon 2 | . . . . . . . . 2 . . Launcher 2 | . . . . . . . . 2 . . Special Weapon . | . . . . . . . . . . . Impact Weapon . | . . . . . . . . . . . Slashing Weapon 1 | . . . . . . . . 1 . . Piercing Weapon . | . . . . . . . . . . . Special Melee Weapon . | . . . . . . . . . . . Unidentified Prototypes 1 | . . . . 1 . . . . . . Parts Lost 68 | . 3 1 8 8 . . 12 22 14 . Power 6 | . 1 1 . . . . 1 2 1 . Propulsion 14 | . 2 . 2 1 . . 2 4 3 . Utility 13 | . . . 1 3 . . 2 4 3 . Weapon 35 | . . . 5 4 . . 7 12 7 . Highest Loss Streak 14 | . 2 1 3 2 . . 4 13 14 . To Critical Strikes 2 | . . . . . . . . 1 1 . Average Backups 22 | 5 12 17 22 24 24 24 23 23 16 5 Power 1 | 1 . . 1 2 2 1 2 2 1 . Propulsion 6 | 3 5 8 8 8 9 6 3 3 3 1 Utility 7 | . 1 3 7 6 5 8 10 11 8 4 Weapon 6 | 1 5 5 4 6 7 7 7 5 3 . Tool/Special . | . . . . . . . . . . . Unused Backups 44 | 6 4 . 9 5 . 6 1 2 8 3 Power 7 | 1 1 . 1 . . . . 2 2 . Propulsion 17 | 4 3 . 1 2 . 3 . . 3 1 Utility 11 | 1 . . . 2 . 2 1 . 3 2 Weapon 9 | . . . 7 1 . 1 . . . . Tool/Special . | . . . . . . . . . . . Average Slot Usage (%) 97 | . 99 99 98 97 99 100 94 92 61 . Engine 8 | . 13 11 7 11 11 11 6 . . . Treads 7 | . 13 14 11 11 11 9 2 . . . Wheel 12 | . 13 14 10 11 11 12 12 16 10 . Device 8 | . 14 10 . . 10 11 14 9 1 . Storage 9 | . 14 14 11 11 11 11 6 6 4 . Processor 2 | . . . . . . . . 11 12 . Protection 4 | . . 3 10 9 . . 9 3 5 . Energy Gun 1 | . 15 . . . . . . . . . Ballistic Gun 37 | . 12 28 43 43 44 44 38 29 18 . Peak Build Rating 65 | 7 10 13 19 24 20 25 61 65 57 1 Average Rating 28 | 6 8 11 17 18 19 23 46 56 32 1 On Entrance 20 | 6 7 10 13 19 18 20 25 60 49 1 Naked Turns 40 | . . . . . . . . . 32 8 Heaviest Build 127 | 13 90 94 103 103 101 104 127 127 124 . Greatest Support 44 | 10 16 10 16 12 12 24 40 44 40 3 Greatest Overweight (x) 9 | 1 8 9 9 8 8 8 5 8 3 . Average Overweight (x) 5 | 1 2 8 7 8 8 7 3 2 . . Largest Inventory Capacity 25 | 8 25 25 25 25 25 25 25 25 25 5 Average Capacity 24 | 8 16 25 25 25 25 25 25 25 18 5 Most Carried 25 | 8 15 20 25 25 25 25 25 25 22 5 Average Carried 22 | 5 13 17 22 24 24 24 23 23 16 5 Final Capacity 25 | 8 25 25 25 25 25 25 25 25 5 5 Final Carried 25 | 8 14 20 25 22 25 25 22 23 5 5 Class Distribution -------------------- 27% | Commander-Skirmisher 20% | Tank 17% | Scavenger-Executioner 14% | Mutant 6% | Executioner 6% | Commander-Executioner 3% | Commander-Gunner Dominant Class ---------------- Mutant | -10/Materials Mutant | -10/Mines Tank | -9/Materials Tank | -9/Storage Commander-Skirmisher | -9/Recycling Commander-Skirmisher | -9/Scraptown Executioner | -6/Factory Scavenger-Executioner | -6/Extension Mutant | -6/Cetus Mutant | -6/Archives Resources | -11 -10 -10 -9 -9 -9 -9 -6 -6 -6 -6 ----------- Run | Yrd Mat Min Mat Sto Rec Scr Fac Ext Cet Arc Matter Collected 6437 | 260 214 250 1029 1151 58 20 1972 1448 35 . Remotely 394 | 25 . . 157 . . . 10 202 . . Salvage Created 9015 | 113 746 72 1272 1635 84 . 2732 2293 68 . Parts 433 | 5 41 3 69 94 7 . 128 85 1 . Haulers Intercepted 15 | . 2 . 5 6 . . 2 . . . Recyclers Shooed 8 | 1 1 . 2 2 . . 2 . . . Parts Field Recycled . | . . . . . . . . . . . Retrieved Matter . | . . . . . . . . . . . Parts Self-Destructed . | . . . . . . . . . . . Prevented . | . . . . . . . . . . . Kills | -11 -10 -10 -9 -9 -9 -9 -6 -6 -6 -6 ------- Run | Yrd Mat Min Mat Sto Rec Scr Fac Ext Cet Arc Combat Hostiles Destroyed 136 | . 15 3 19 27 . . 40 30 2 . Guns 120 | . 15 3 19 27 . . 37 17 2 . Cannons 6 | . . . . . . . . 6 . . AOE 10 | . . . . . . . 3 7 . . Classes Destroyed 18 | 2 4 1 2 4 . . 3 2 . . Worker 10 | . 1 . . 3 . . 6 . . . Builder 8 | . . . 1 2 1 . 3 1 . . Tunneler 2 | 1 . . . . . . . 1 . . Hauler 15 | . 2 . 5 6 . . 2 . . . Recycler 11 | 1 1 . 3 . 1 . 1 4 . . Mechanic 1 | . . . . 1 . . . . . . Operator 1 | . . . . 1 . . . . . . Watcher 1 | . . . . . . . 1 . . . Swarmer 16 | . 3 . 3 3 . . 3 4 . . Grunt 68 | . 12 1 9 12 . . 27 7 . . Brawler 3 | . . . . 1 . . 1 1 . . Duelist 5 | . . . . 2 . . . 3 . . Sentry 31 | . . . 7 9 . . 5 10 . . Demolisher 2 | . . . . . . . . 2 . . Specialist 1 | . . . . . . . . 1 . . Hunter 2 | . . . . . . . 2 . . . Programmer 5 | . . . . . . . 4 1 . . Cetus Guard 2 | . . . . . . . . . 2 . Assembled 2 | . . 2 . . . . . . . . Thug 4 | . . . . . . . . 4 . . Savage 2 | . . . . . . . . 2 . . Butcher 2 | . . . . . . . . 2 . . Guerrilla 2 | . . . . . . . . 2 . . Best Kill Streak 6 | 2 4 1 4 6 1 . 6 6 1 . Combat Bots Only 5 | . 3 1 4 5 . . 5 5 1 . Max Kills in Single Turn 6 | 1 2 1 2 2 1 . 6 4 1 . Gunslinging . | . . . . . . . . . . . Exploded 4 | . . . . . . . 2 4 . . Melee . | . . . . . . . . . . . Uniques/NPCs Destroyed . | . . . . . . . . . . . Combat | -11 -10 -10 -9 -9 -9 -9 -6 -6 -6 -6 -------- Run | Yrd Mat Min Mat Sto Rec Scr Fac Ext Cet Arc Hostile Shots Fired 942 | . 68 15 91 115 3 . 268 300 80 2 Missed 286 | . 14 4 16 35 . . 88 106 23 . Hits 656 | . 54 11 75 80 3 . 180 194 57 2 Melee 10 | . . . . 10 . . . . . . Projectile 646 | . 54 11 75 70 3 . 180 194 57 2 AOE 5 | . . . . . . . . 5 . . Critical Strikes 29 | . . 1 . 5 . . 7 6 10 . Damage Taken 10152 | . 605 157 1058 1275 44 . 2594 2834 1541 44 Core 1302 | . 128 14 116 173 . . 183 391 253 44 Absorbed by Shields 64 | . . . . . . . 64 . . . Core Remaining (%) 56 | 100 . 43 . . . 27 . . . . Volleys Fired 421 | 4 47 14 61 74 4 . 95 106 16 . Largest 6 | 2 2 2 4 4 4 . 6 6 6 . Hottest 264 | 80 80 46 92 92 92 . 212 264 173 . Shots Fired 1556 | 8 94 28 223 292 16 . 552 290 53 . Gun 1445 | 8 94 28 223 292 16 . 548 194 42 . Cannon 96 | . . . . . . . 4 81 11 . Launcher 15 | . . . . . . . . 15 . . Special . | . . . . . . . . . . . Kinetic 1393 | . 26 28 223 292 16 . 548 212 48 . Thermal 110 | 8 68 . . . . . 4 26 4 . Explosive 15 | . . . . . . . . 15 . . Electromagnetic 38 | . . . . . . . . 37 1 . Robot Hit Streak 31 | 6 31 3 6 15 8 . 12 10 8 . Robot Miss Streak 10 | . 3 4 6 5 1 . 7 10 4 . Penetration Max 1 | . . . . . . . 1 1 1 . Secondary Targets 15 | . 1 . 3 3 . . 4 4 . . Max Gunslinging Chain 1 | . 1 . 1 1 . . 1 1 . . Shots Hit Robots 899 | 6 71 13 116 156 9 . 324 167 37 . Core Hits 542 | 3 33 6 42 60 3 . 181 180 34 . Critical Kills 8 | . . . . 1 . . 5 2 . . Critical Parts Destroyed 13 | . . . 3 2 . . 5 1 2 . Critical Strikes 21 | . . . 3 3 . . 10 3 2 . Destroy 21 | . . . 3 3 . . 10 3 2 . Melee Attacks 5 | . . . . . . . . 5 . . Impact . | . . . . . . . . . . . Slashing 5 | . . . . . . . . 5 . . Piercing . | . . . . . . . . . . . Sneak Attacks . | . . . . . . . . . . . Combat Hostiles . | . . . . . . . . . . . Follow-up Attacks . | . . . . . . . . . . . Damage Inflicted 18660 | 69 879 195 1820 2404 132 . 6844 5497 820 . Guns 14315 | 69 879 195 1820 2404 132 . 5519 2728 569 . Cannons 1566 | . . . . . . . 29 1286 251 . Explosions 2772 | . . . . . . . 1296 1476 . . Melee . | . . . . . . . . . . . Ramming 7 | . . . . . . . . 7 . . Kinetic 13866 | . 297 195 1820 2404 132 . 5519 2822 677 . Thermal 2551 | 69 582 . . . . . 1325 458 117 . Explosive 1476 | . . . . . . . . 1476 . . Electromagnetic 760 | . . . . . . . . 734 26 . Impact . | . . . . . . . . . . . Slashing . | . . . . . . . . . . . Piercing . | . . . . . . . . . . . Highest Corruption 1 | . 1 1 . . . . . . . . Average Corruption 1 | . 1 1 . . . . . . . . Corruption Purged . | . . . . . . . . . . . Corruption Blocked . | . . . . . . . . . . . Effects 10 | . 4 6 . . . . . . . . Message Errors 2 | . 2 . . . . . . . . . Matter Fused 3 | . 1 2 . . . . . . . . Energy Discharges 3 | . . 3 . . . . . . . . Data Loss (major) 1 | . . 1 . . . . . . . . Alerts 1 | . 1 . . . . . . . . . Overload Shots . | . . . . . . . . . . . Overflow Damage 251 | . . . . . . . 208 43 . . Projectiles 1 | . . . . . . . . 1 . . Explosions 250 | . . . . . . . 208 42 . . Melee . | . . . . . . . . . . . Knockbacks . | . . . . . . . . . . . Impact . | . . . . . . . . . . . Kinetic . | . . . . . . . . . . . Secondary . | . . . . . . . . . . . Self-Inflicted Damage 168 | . . . . . . . 50 118 . . Shots 4 | . . . . . . . 1 3 . . Rammed 1 | . . . . . . . . 1 . . Targets Rammed 1 | . . . . . . . . 1 . . Kicked . | . . . . . . . . . . . Crushed . | . . . . . . . . . . . Highest Temperature 552 | 92 258 32 552 168 24 . 384 334 362 . Average Temperature 81 | 48 79 11 126 43 12 . 71 77 199 . Received Heat Transfer 2779 | . 297 63 333 360 9 . 964 609 135 9 Effects 23 | . 3 . 13 . . . 3 2 2 . Shutdowns 4 | . . . 2 . . . 1 1 . . Energy Bleed 3 | . . . 1 . . . . 1 1 . Interference 6 | . 3 . 3 . . . . . . . Matter Decay 1 | . . . 1 . . . . . . . Damage (minor) 4 | . . . 1 . . . 2 . 1 . Damage (major) 4 | . . . 4 . . . . . . . Damage (core) 1 | . . . 1 . . . . . . . Siege Activations . | . . . . . . . . . . . Martial Activations . | . . . . . . . . . . . Shielding Activations . | . . . . . . . . . . . Robots Disrupted . | . . . . . . . . . . . Combat Hostiles . | . . . . . . . . . . . Robots Corrupted 3 | . . . . . . . . 3 . . Combat Hostiles . | . . . . . . . . . . . Parts Fried 2 | . . . . . . . . 2 . . Impact Corruptions . | . . . . . . . . . . . Robots Melted . | . . . . . . . . . . . Combat Hostiles . | . . . . . . . . . . . Parts Melted 9 | . 7 . . 1 . . 1 . . . Heat Transferred 2971 | 150 1325 . . . . . 811 537 148 . Parts Sabotaged . | . . . . . . . . . . . Parts Stolen . | . . . . . . . . . . . Parts Stripped . | . . . . . . . . . . . Power Chain Reactions . | . . . . . . . . . . . Alert | -11 -10 -10 -9 -9 -9 -9 -6 -6 -6 -6 ------- Run | Yrd Mat Min Mat Sto Rec Scr Fac Ext Cet Arc Maximum Alert Level 5 | . . . . 2 . . 3 5 4 1 Low Security (%) 53 | 100 100 100 100 44 100 . 8 . . . Level 1 8 | . . . . 49 . . 4 1 . 100 Level 2 19 | . . . . 6 . . 42 55 . . Level 3 10 | . . . . . . . 44 8 70 . Level 4 3 | . . . . . . . . 16 29 . Level 5 2 | . . . . . . . . 14 . . High Security . | . . . . . . . . 3 . . Max Security . | . . . . . . . . . . . Peak Influence 1717 | 10 108 30 196 443 166 . 1061 1717 1111 386 Initial 1100 | . . . . . 166 . . 518 1100 386 Average 360 | 1 38 1 77 198 52 . 620 913 1037 386 Influence Increases 6751 | 10 413 30 634 1016 365 . 1883 2343 57 . Destroy 0b10 Robot/C 3540 | . 300 20 380 580 100 . 900 1220 40 . Destroy 0b10 Robot/NC 270 | 10 20 . 45 65 15 . 65 50 . . Destroy Leader 764 | . 74 10 130 182 . . 236 132 . . Allied During Kill 997 | . . . . 111 49 . 141 696 . . Successful Hack 161 | . 19 . 40 26 20 . 14 42 . . Select Force Hacks 180 | . . . . . 180 . . . . . Disable Machine 180 | . . . 15 . . . 120 45 . . Anti-Garrison Action 200 | . . . . . . . 200 . . . Destroy Structure 204 | . . . 9 7 1 . 57 128 2 . Partial Spotted 30 | . . . 15 . . . 15 . . . Lose Combat Pursuer 225 | . . . . 45 . . 135 30 15 . Influence Decreases 6527 | 10 413 30 634 588 793 . 824 1725 929 581 Entered New Map 2123 | . . . . . 262 . . 541 739 581 Time Decay 3017 | 10 321 30 445 508 475 . 554 624 50 . Lost Part 670 | . 30 . 80 80 . . 120 220 140 . Lost Ally 538 | . . . . . 48 . 150 340 . . Purge Threat 179 | . 62 . 109 . 8 . . . . . Squads Dispatched 38 | . 4 . 4 5 . . 21 4 . . Investigation 10 | . 2 . 2 2 . . 4 . . . Extermination 4 | . . . . . . . 4 . . . Reinforcement 8 | . 2 . 2 1 . . 3 . . . Assault 7 | . . . . . . . 3 4 . . Garrison 9 | . . . . 2 . . 7 . . . Intercept . | . . . . . . . . . . . Searches Triggered . | . . . . . . . . . . . Construction Impeded 1 | . . . 1 . . . . . . . Haulers Reinforced . | . . . . . . . . . . . Active Scanning Responses . | . . . . . . . . . . . Cargo Convoy Interrupts . | . . . . . . . . . . . Stealth | -11 -10 -10 -9 -9 -9 -9 -6 -6 -6 -6 --------- Run | Yrd Mat Min Mat Sto Rec Scr Fac Ext Cet Arc Distress Signals 10 | . . . 2 3 . . . 4 1 . Communications Jammed . | . . . . . . . . . . . Distress Signals . | . . . . . . . . . . . Times Spotted 221 | . 21 3 32 33 3 . 61 60 5 3 Peak Tracking Total 8 | . 6 1 6 6 2 . 6 8 5 3 Tactical Retreats 9 | . . . . 1 . . 5 2 1 . Traps | -11 -10 -10 -9 -9 -9 -9 -6 -6 -6 -6 ------- Run | Yrd Mat Min Mat Sto Rec Scr Fac Ext Cet Arc Traps Triggered 14 | . 3 . 1 3 . . 2 5 . . Indirectly . | . . . . . . . . . . . Trap Hack Attempts . | . . . . . . . . . . . Triggered . | . . . . . . . . . . . Disarmed . | . . . . . . . . . . . Reprogrammed . | . . . . . . . . . . . Reused . | . . . . . . . . . . . Traps Extracted . | . . . . . . . . . . . Installed . | . . . . . . . . . . . Triggered . | . . . . . . . . . . . Machines | -11 -10 -10 -9 -9 -9 -9 -6 -6 -6 -6 ---------- Run | Yrd Mat Min Mat Sto Rec Scr Fac Ext Cet Arc Machines Disabled 15 | . . . 1 . . . 8 6 . . Max in Single Turn 4 | . . . 1 . . . 4 2 . . Garrison Access 3 | . . . . 1 . . 2 . . . Machines Repaired . | . . . . . . . . . . . Machines Dismantled . | . . . . . . . . . . . Machines Sabotaged . | . . . . . . . . . . . Overloaded Fab Kills . | . . . . . . . . . . . Hacking | -11 -10 -10 -9 -9 -9 -9 -6 -6 -6 -6 --------- Run | Yrd Mat Min Mat Sto Rec Scr Fac Ext Cet Arc Machines Accessed 64 | . 6 1 10 11 12 6 7 11 . . Terminals 42 | . 6 1 8 8 6 . 2 11 . . Fabricators . | . . . . . . . . . . . Repair Stations . | . . . . . . . . . . . Recycling Units 12 | . . . 1 2 6 . 3 . . . Scanalyzers 1 | . . . 1 . . . . . . . Garrison Access 3 | . . . . 1 . . 2 . . . Total Hacks 203 | . 23 5 31 26 34 51 15 18 . . Successful 140 | . 14 2 21 14 18 51 9 11 . . Failed 63 | . 9 3 10 12 16 . 6 7 . . Catastrophic 8 | . 1 1 3 2 . . 1 . . . Database Lockouts . | . . . . . . . . . . . Manual 83 | . 15 1 19 14 25 . 9 . . . Terminals 119 | . 23 5 25 21 22 . 5 18 . . Fabricators . | . . . . . . . . . . . Repair Stations . | . . . . . . . . . . . Recycling Units 24 | . . . 2 4 12 . 6 . . . Scanalyzers 4 | . . . 4 . . . . . . . Garrison Access 5 | . . . . 1 . . 4 . . . Terminal Hacks 84 | . 6 2 6 5 2 51 1 11 . . Record 53 | . . 1 . . . 51 . 1 . . Prototype ID Bank 7 | . 2 . 2 . 1 . 1 1 . . Open Door 11 | . . . . 3 . . . 8 . . Branch Access Points 2 | . . . 1 1 . . . . . . Terminal Index 2 | . 1 . 1 . . . . . . . Unreport Threat 4 | . 2 . 1 . 1 . . . . . Locate Traps 1 | . . . . . . . . 1 . . Dispatch Records 1 | . . 1 . . . . . . . . Hauler Manifests 1 | . 1 . . . . . . . . . Registered Components 2 | . . . 1 1 . . . . . . Fabricator Hacks . | . . . . . . . . . . . Repair Station Hacks . | . . . . . . . . . . . Recycling Unit Hacks 7 | . . . 1 1 3 . 2 . . . Retrieve Components 7 | . . . 1 1 3 . 2 . . . Scanalyzer 4 | . . . 4 . . . . . . . Insert Component 2 | . . . 2 . . . . . . . Analyze 2 | . . . 2 . . . . . . . Garrison Access Hacks 2 | . . . . 1 . . 1 . . . Seal Access 2 | . . . . 1 . . 1 . . . Unauthorized Hacks 43 | . 8 . 10 7 13 . 5 . . . Terminals 32 | . 8 . 10 7 7 . . . . . Botnet 10 | . 3 . 3 3 1 . . . . . Operators 1 | . 1 . . . . . . . . . Skim 21 | . 4 . 7 4 6 . . . . . Fabricators . | . . . . . . . . . . . Repair Stations . | . . . . . . . . . . . Recycling Units 10 | . . . . . 6 . 4 . . . Mask 1 | . . . . . . . 1 . . . Tunnel 6 | . . . . . 6 . . . . . Fedlink 3 | . . . . . . . 3 . . . Scanalyzers . | . . . . . . . . . . . Garrison Access 1 | . . . . . . . 1 . . . Jam 1 | . . . . . . . 1 . . . Data Cores Recovered . | . . . . . . . . . . . Used . | . . . . . . . . . . . Hacking Detections 40 | . 6 1 10 8 9 . 3 3 . . Full Trace Events 4 | . 1 . 2 1 . . . . . . Feedback Events . | . . . . . . . . . . . Feedback Blocked . | . . . . . . . . . . . Robot Schematics Acquired . | . . . . . . . . . . . Robots Built . | . . . . . . . . . . . Authchips . | . . . . . . . . . . . Time . | . . . . . . . . . . . Total Robot Build Rating . | . . . . . . . . . . . Part Schematics Acquired 2 | . . . 2 . . . . . . . Parts Built . | . . . . . . . . . . . Authchips . | . . . . . . . . . . . Time . | . . . . . . . . . . . Total Part Build Rating . | . . . . . . . . . . . Parts Repaired . | . . . . . . . . . . . Time . | . . . . . . . . . . . Parts Recycled . | . . . . . . . . . . . Recycled Matter . | . . . . . . . . . . . Retrieved Matter . | . . . . . . . . . . . Retrieved Components 17 | . . . 10 1 4 . 2 . . . Parts Scanalyzed 2 | . . . 2 . . . . . . . Part Schematics Acquired 2 | . . . 2 . . . . . . . Parts Damaged 1 | . . . 1 . . . . . . . Bothacking | -11 -10 -10 -9 -9 -9 -9 -6 -6 -6 -6 ------------ Run | Yrd Mat Min Mat Sto Rec Scr Fac Ext Cet Arc Used RIF Installer . | . . . . . . . . . . . Robots Hacked . | . . . . . . . . . . . Non-combat . | . . . . . . . . . . . Combat . | . . . . . . . . . . . Robot Hacks Applied . | . . . . . . . . . . . Relay Couplers Released . | . . . . . . . . . . . Fabnet Peak Effective % . | . . . . . . . . . . . Robots Rewired 28 | . . . . . 10 . . 18 . . Allies Hacked . | . . . . . . . . . . . Hacks Repelled . | . . . . . . . . . . . Allies | -11 -10 -10 -9 -9 -9 -9 -6 -6 -6 -6 -------- Run | Yrd Mat Min Mat Sto Rec Scr Fac Ext Cet Arc Total Allies 50 | . . . . 10 10 1 . 29 . . Largest Group 16 | . . . . 10 16 16 12 16 . . Highest-Rated Group 500 | . . . . 88 205 222 172 500 . . Highest-Rated Ally 39 | . . . . 16 27 27 27 39 . . Total Orders 6 | . . . . . . 1 . 5 . . STAY 3 | . . . . . . . . 3 . . FOLLOW 2 | . . . . . . . . 2 . . COLLECT 1 | . . . . . . 1 . . . . Ally Attacks 377 | . . . . 23 32 . 32 290 . . Total Damage 5640 | . . . . 230 314 . 416 4680 . . Kills 51 | . . . . 2 6 . 6 37 . . Allies Corrupted 3 | . . . . . . . . 3 . . Allies Melted . | . . . . . . . . . . . Intel | -11 -10 -10 -9 -9 -9 -9 -6 -6 -6 -6 ------- Run | Yrd Mat Min Mat Sto Rec Scr Fac Ext Cet Arc Active Infowar (turns) 7961 | 5 915 640 . . 1267 2578 1530 1026 . . Terrain 2278 | . . . . . . . 1526 752 . . Structural 4786 | . . . . . 1267 2578 941 . . . Seismic 1834 | 5 915 640 . . . . . 274 . . Robot Analysis Total . | . . . . . . . . . . . Derelict Logs Recovered 1 | . . 1 . . . . . . . . Drone Launches . | . . . . . . . . . . . Drone Recoveries . | . . . . . . . . . . . Exploration | -11 -10 -10 -9 -9 -9 -9 -6 -6 -6 -6 ------------- Run | Yrd Mat Min Mat Sto Rec Scr Fac Ext Cet Arc Turns Passed 13794 | 46 1030 824 1814 1735 1312 2578 2134 2209 104 8 Spaces Moved 6363 | 22 652 358 751 664 558 1054 1130 1079 80 15 Core 79 | . . . . . . . . . 64 15 Treads . | . . . . . . . . . . . Legs . | . . . . . . . . . . . Wheels 6284 | 22 652 358 751 664 558 1054 1130 1079 16 . Hover . | . . . . . . . . . . . Flight . | . . . . . . . . . . . Fastest Speed 50 | 95 95 200 190 210 210 150 125 120 50 50 Average Speed 171 | 95 126 203 201 210 210 205 143 131 67 50 Slowest Speed 215 | 95 200 215 215 210 210 210 165 210 138 50 Overloaded Moves . | . . . . . . . . . . . Propulsion Burnouts . | . . . . . . . . . . . Robots Hopped . | . . . . . . . . . . . Potential Cave-ins . | . . . . . . . . . . . Cave-ins Triggered . | . . . . . . . . . . . Exploration Rate (%) 66 | 2 97 91 69 83 97 77 35 85 49 43 Regions Visited 10 Branch Regions 7 Pre-discovered Areas 9 | . . . 1 . 7 . 1 . . . Known Exits Taken 3 | . . . 1 1 1 . . . . . Unknown Exits Taken 7 | 1 1 1 . . . 1 1 1 1 . Scrap Searched 7 | . . 1 . . . 6 . . . . Spaces Dug 20 | . . . . . . . 2 18 . . Terrain Destroyed 182 | . . . . . . . 55 127 . . Melee . | . . . . . . . . . . . Projectile 18 | . . . . . . . 3 15 . . AOE 163 | . . . . . . . 51 112 . . Terrain Rammed . | . . . . . . . . . . . Walls Destroyed . | . . . . . . . . . . . Machines Disabled . | . . . . . . . . . . . Actions | -11 -10 -10 -9 -9 -9 -9 -6 -6 -6 -6 --------- Run | Yrd Mat Min Mat Sto Rec Scr Fac Ext Cet Arc Total 8391 | 41 777 431 950 826 689 1469 1417 1675 101 15 Wait 902 | . 45 52 77 58 45 391 103 131 . . Move 6353 | 21 651 357 750 663 557 1053 1129 1078 79 15 Hop . | . . . . . . . . . . . Pick Up 110 | 3 13 5 23 9 4 10 24 19 . . Fast Attach 20 | 2 2 1 2 3 . . 2 8 . . Attach 69 | 4 5 . 9 7 1 . 21 17 5 . Detach 13 | 5 2 . . . . . 2 3 1 . Swap 49 | . 4 2 11 2 . 3 11 16 . . Drop 68 | 2 8 . 17 9 . 12 14 6 . . Fire 421 | 4 47 14 61 74 4 . 95 106 16 . Melee 5 | . . . . . . . . 5 . . Ram 1 | . . . . . . . . 1 . . Kick . | . . . . . . . . . . . Crush . | . . . . . . . . . . . Escape Stasis 56 | . . . . . . . 16 40 . . Rewire 324 | . . . . 1 78 . . 245 . . Trap . | . . . . . . . . . . . Miscellaneous . | . . . . . . . . . . . Route ------- -11/Scrapyard -10/Materials (discovered 5 exits: *Mat x3 / *Min / [*Sub]) -10/Mines (discovered 2 exits: *Mat x2) -9/Materials (discovered 6 exits: [*Mat x3] / *Min / *Sto x2) -9/Storage (discovered 2 exits: [*Mat] / *Rec) -9/Recycling (discovered 2 exits: *Fac / *Scr) -9/Scraptown (discovered 2 exits: *Fac x2) -6/Factory (discovered 3 exits: [*Fac] / [*Low] / *Ext) -6/Extension (discovered 2 exits: [*Fac] / *Cet) -6/Cetus -6/Archives History --------- Turn | Location | Event 11 | -11/Scrapyard | Discovered new exit (range 2) 47 | -11/Scrapyard | Entered Materials 292 | -10/Materials | Discovered new exit (range 6) 309 | -10/Materials | Build established: Mutant 384 | -10/Materials | Discovered new exit (range 13) 652 | -10/Materials | Discovered new exit (range 16) 799 | -10/Materials | Discovered new exit (range 10) 806 | -10/Materials | Core integrity fell below 50% 1041 | -10/Materials | Discovered new exit (range 13) 1077 | -10/Materials | Entered Mines 1078 | -10/Mines | Assembled infested the area 1302 | -10/Mines | Learned 2 Materials zone layouts 1352 | -10/Mines | Discovered new exit (range 7) 1890 | -10/Mines | Discovered new exit (range 3) 1901 | -10/Mines | Entered Materials 1901 | -9/Materials | Evolved 2 slots: Weapon x2 1902 | -9/Materials | Identified exit to Mines 2220 | -9/Materials | Build established: Tank 2254 | -9/Materials | Discovered new exit (range 15) 2365 | -9/Materials | Discovered new exit (range 7) 2622 | -9/Materials | Lost 3 parts (1n2w) 2862 | -9/Materials | Lost 3 parts (1u2w) 3137 | -9/Materials | Discovered new exit (range 16) 3271 | -9/Materials | Identified exit to Storage 3364 | -9/Materials | Discovered new exit (range 15) 3437 | -9/Materials | Learned 2 Storage zone layouts 3516 | -9/Materials | Learned location of Mines (-8) 3540 | -9/Materials | Learned location of 1 exit from Recycling 3556 | -9/Materials | Learned 2 Storage zone layouts 3621 | -9/Materials | Learned location of 1 exit from Recycling 3673 | -9/Materials | Discovered new exit (range 16) 3715 | -9/Materials | Entered Storage 4426 | -9/Storage | Garrison activated, responded to threat 4565 | -9/Storage | Core integrity fell below 50% 4597 | -9/Storage | Identified exit to Recycling 4676 | -9/Storage | Used back door to open Recycling access 4793 | -9/Storage | Assisted by bots powering up and referring to "LRC-V3" 4933 | -9/Storage | Discovered new exit (range 8) 5089 | -9/Storage | Build established: Commander-Tank 5450 | -9/Storage | Entered Recycling 5450 | -9/Recycling | Accompanied by 10 allies 5451 | -9/Recycling | Identified exit to Scraptown 5451 | -9/Recycling | Identified exit to Factory 5472 | -9/Recycling | Build established: Commander-Gunner 5801 | -9/Recycling | Build established: Commander-Skirmisher 6130 | -9/Recycling | Lost 3 allies 6337 | -9/Recycling | Scanned before Scraplab entrance 6546 | -9/Recycling | Learned Storage emergency access door positions 6696 | -9/Recycling | Entered Scraplab 6731 | -9/Recycling | Learned location of 1 exit from Recycling 6762 | -9/Recycling | Entered Scraptown 6762 | -9/Scraptown | Accompanied by 15 allies 7080 | -9/Scraptown | Discovered new exit (range 13) 7286 | -9/Scraptown | Visited Spacefarers 7336 | -9/Scraptown | Visited Bundlers 7556 | -9/Scraptown | Visited IN-MT5's Study 7586 | -9/Scraptown | Visited TADAMA 7607 | -9/Scraptown | Visited Cyclists 7691 | -9/Scraptown | Visited UFD Registry 7691 | -9/Scraptown | Registered with UFD as "Monoblaster" 7726 | -9/Scraptown | Visited Symbiants 7842 | -9/Scraptown | Entered Cyclist Reading Room 7957 | -9/Scraptown | Visited Scrap Suit Storage 7995 | -9/Scraptown | Visited Observation Area 8033 | -9/Scraptown | Visited Science Guys 8157 | -9/Scraptown | Visited A0-MCA Data Center 8170 | -9/Scraptown | Given a B- rating by A0-MCA 8174 | -9/Scraptown | Found A0-MCA's Component Scanner 8213 | -9/Scraptown | Visited Derelict Rescue Squad 8263 | -9/Scraptown | Visited Science Testing Area 8291 | -9/Scraptown | Visited DA-N13 Charitable Foundation 8310 | -9/Scraptown | Found DCF Scrap (27 items) 8354 | -9/Scraptown | Visited Chapter 10 8400 | -9/Scraptown | Visited Botcube Research 8438 | -9/Scraptown | Visited Abandonware Association 8463 | -9/Scraptown | Learned abandonware demo "MELTYB.EXE" 8531 | -9/Scraptown | Found Botcube 8635 | -9/Scraptown | Botcube activated 8639 | -9/Scraptown | Botcube completed mutation into treaded form (unarmed). 9231 | -9/Scraptown | Met Optimus 9231 | -9/Scraptown | Accepted into 0bPrime 9306 | -9/Scraptown | Discovered new exit (range 3) 9340 | -9/Scraptown | Entered Factory 9340 | -6/Factory | Accompanied by 12 allies 9340 | -6/Factory | Evolved 6 slots: Propulsion x1, Utility x3, Weapon x2 9574 | -6/Factory | Garrison activated, responded to threat 9639 | -6/Factory | Build established: Commander-Executioner 9714 | -6/Factory | Lost 3 allies 9772 | -6/Factory | Lost 4 allies 9935 | -6/Factory | Loaded intel: 8 recycling unit locations 9972 | -6/Factory | Learned location of Protoforge (-2) 10026 | -6/Factory | Build established: Scavenger-Executioner 10127 | -6/Factory | Lost 4 parts (1p1u2w) 10194 | -6/Factory | Discovered new exit (range 16) 10288 | -6/Factory | Garrison activated, responded to threat 10467 | -6/Factory | Discovered new exit (range 16) 10592 | -6/Factory | Build established: Executioner 10755 | -6/Factory | Discovered new exit (range 9) 10767 | -6/Factory | Garrison activated, responded to threat 11090 | -6/Factory | First assault squad dispatched 11474 | -6/Factory | Entered Extension 11504 | -6/Extension | Build established: Scavenger-Executioner 11649 | -6/Extension | Disrupted transfer network 11824 | -6/Extension | First assault squad dispatched 11981 | -6/Extension | Rescued a captive Derelict 11982 | -6/Extension | Rescued a captive Derelict 11984 | -6/Extension | Lost 4 allies 12046 | -6/Extension | Rescued a captive Derelict 12079 | -6/Extension | Rescued a captive Derelict 12080 | -6/Extension | Rescued a captive Derelict 12108 | -6/Extension | Rescued a captive Derelict 12382 | -6/Extension | Spotted B-75 Beast 12401 | -6/Extension | Spotted B-75 Beast 12410 | -6/Extension | Allies destroyed B-75 Beast 12419 | -6/Extension | Allies destroyed B-75 Beast 12477 | -6/Extension | Lost 13 parts (2p3n2u6w) 12707 | -6/Extension | Rescued a captive Derelict 12728 | -6/Extension | Core integrity fell below 50% 12805 | -6/Extension | Rescued a captive Derelict 12832 | -6/Extension | Rescued a captive Derelict 12834 | -6/Extension | Rescued a captive Derelict 12845 | -6/Extension | Rescued a captive Derelict 12967 | -6/Extension | Disrupted transfer network 13417 | -6/Extension | Murdered 3 allies 13514 | -6/Extension | Build established: Commander-Executioner 13603 | -6/Extension | High security lockdown imminent 13637 | -6/Extension | Lost 8 allies 13652 | -6/Extension | Discovered new exit (range 10) 13653 | -6/Extension | Discovered new exit (range 6) 13683 | -6/Extension | High security lockdown engaged 13683 | -6/Extension | Entered Cetus 13702 | -6/Cetus | Spotted Cetus Guard 13702 | -6/Cetus | Spotted Cetus Guard 13707 | -6/Cetus | Spotted Cetus Guard 13713 | -6/Cetus | Destroyed Cetus Guard 13721 | -6/Cetus | Spotted Cetus Guard 13742 | -6/Cetus | Destroyed Cetus Guard 13753 | -6/Cetus | Core integrity fell below 20% 13755 | -6/Cetus | Released all parts (4) 13779 | -6/Cetus | Discovered new exit (range 16) 13785 | -6/Cetus | Lost 14 parts (1p3n3u7w) 13787 | -6/Cetus | Entered Archives 13795 | -6/Archives | Destroyed by Y-64 Sentinel with Wave Gun Last Messages --------------- 13751_ Penetrated by Slug. 13751_ Imp. Light Armor Plating destroyed. 13752_ Penetrated by Slug. 13754_ Lgt. Antimatter Reactor destroyed. 13755_ Slug penetrates Wall. 13755_ Released Adv. Targeting Computer. 13755_ Released Huge Storage Unit. 13755_ Released Armor Integrity Analyzer. 13755_ Released Phase Cannon. 13758_ Slug penetrates Wall. 13759_ Penetrated by Slug. 13761_ Slug penetrates Wall. 13761_ Acquired 35 matter. 13764_ Penetrated by Slug. 13773_ Connecting with Cetus Manufacturing Controls... 13773_ Current location identified: Cetus 13779_ EXIT=FOUND LOCATION=UNKNOWN GOAL=ESCAPE Map ----- +----------------------------------------------------+ | | | | | | | | | | | | | | | ?????????????????????????????????????????? | | ?????????????????????????????????????????? | | ?????????????????????????????????????????? | | ?????????????????????????????????????????? | | ?????????????????????????????????????????? | | ?????????????????????????????????????????? | | ?????????????????????????????????????????? | | ?????????????????????????????????????????? | | ?????????????????????????????????????????? | | ?????????????????????????????????????????? | | ?????????????????????????????????????????? | | ?????????????????????????????????????????? | | ???????????????????#"???#????????????????? | | ??????????????????"""""""????????????????? | | ??????????????????"""V"""#???????????????? | | ??????????????????""" """#???????????????? | | ????????????????##"" o""# ##??????????? | | ??############### Y#??????????? | | ??# Y@ o ""?????????? | | ??# ""?????????? | | ??# "?????????? | | ??#####+######### ?????????? | | ??# #???" "?????????? | | ??# #???" o"??????????? | | ??# """"""? "??????????? | | ??#"""""""""#"V #??????????? | | ??#""""""""""""? ???????????? | | ??#"""""""""#"??" ???????????? | | ??#"""""""""????" ????????????? | | ??????#####?????#Y o ????????????? | | ?????????????????# #"" "?????????????? | | ?????????????????? #"?" ???????????????? | | ?????????????????? #???????????????????? | | ?????????????????? ????????????????????? | | ?????????????????????????????????????????? | | ?????????????????????????????????????????? | | ?????????????????????????????????????????? | | ?????????????????????????????????????????? | | ?????????????????????????????????????????? | | ?????????????????????????????????????????? | | ?????????????????????????????????????????? | | ?????????????????????????????????????????? | | ?????????????????????????????????????????? | +----------------------------------------------------+ Best States ------------- Heat Dissipation 56 Energy Generation 21 Energy Capacity 315 Matter Stores 300 Matter Capacity 400 Sight Range 16 Terrain Scan Range 16 Terrain Scan Density 10 Armor Coverage 450 Evasion (%) 50 Targeting Accuracy 8 Armor Integrity Analysis 30 Recoil Reduction 2 Matter Filtering 30 Item Schematics ----------------- Seismic Detector | -9/Materials | Scanalyzed Imp. Terrain Scanner | -9/Materials | Scanalyzed Robot Schematics ------------------ None Fabricated ------------ Nothing Repaired ---------- Nothing Alien Tech Used ----------------- None Achievements -------------- None Challenges ------------ None Game ------ Seed CargoMatterBoregun Manual? 0 Play Time 01:28:50 Cumulative 87.1 hours Start 2025.08.15 @ 23:46:07 End 2025.08.16 @ 01:21:22 Sessions 1 Manual Loads 0 Difficulty Rogue Special Mode None Game No. 31 Rogue 31 Adventurer 0 Explorer 0 Win Type - Total 1 Types 0/0/1/0/0/0/0/0/0/0 Lore% 64 Gallery% 54 Achievement% 76 Wizard Run 0 Options --------- Layout 2 ASCII 0 Keyboard 1 Movement Vi Keybinds 0 Fullscreen 1 Font 28/Dina Map View 50x52 Zoom Use 0% Tactical HUD 1 Map Filters NONE Filters NONE Steam 1 RUN: 2e2b7c0f-7777-4759-84c5-a6a00e97be0f